[Event "Titled Tuesday Blitz August 08 Late 2023"]
[White "Fajdetic, Hrvoje"]
[Black "Castro Silva, Moises Antonio"]
[WhiteFideId "14501945"]
[BlackFideId "3909794"]
[WhiteElo "2258"]
[BlackElo "2395"]
[Result "0-1"]
[Round "9"]
[TimeControl "180+1"]
[Date "2023.08.08"]
[WhiteClock "0:00:17"]
[BlackClock "0:00:21"]
[Board "114"]

1. b3 {[%clk 0:02:54]}  c5 {[%clk 0:02:59]} 2. Bb2 {[%clk 0:02:54]}  Nc6 {[%clk 0:03:00]} 3. f4 {[%clk 0:02:54]}  Nf6 {[%clk 0:03:01]} 4. Nf3 {[%clk 0:02:54]}  g6 {[%clk 0:03:00]} 5. d3 {[%clk 0:02:53]}  Bg7 {[%clk 0:03:00]} 6. e4 {[%clk 0:02:53]}  O-O {[%clk 0:03:00]} 7. Be2 {[%clk 0:02:53]}  d5 {[%clk 0:02:45]} 8. e5 {[%clk 0:02:51]}  Ng4 {[%clk 0:02:45]} 9. Qd2 {[%clk 0:02:47]}  d4 {[%clk 0:02:44]} 10. O-O {[%clk 0:02:43]}  Ne3 {[%clk 0:02:43]} 11. Rf2 {[%clk 0:02:43]}  f6 {[%clk 0:02:35]} 12. c3 {[%clk 0:02:25]}  fxe5 {[%clk 0:02:06]} 13. fxe5 {[%clk 0:02:26]}  Ng4 {[%clk 0:01:59]} 14. Rf1 {[%clk 0:02:17]}  Ncxe5 {[%clk 0:01:43]} 15. cxd4 {[%clk 0:02:15]}  Nxf3+ {[%clk 0:01:42]} 16. Bxf3 {[%clk 0:02:14]}  Bxd4+ {[%clk 0:01:42]} 17. Kh1 {[%clk 0:02:12]}  Qd6 {[%clk 0:01:28]} 18. g3 {[%clk 0:02:04]}  Bxb2 {[%clk 0:00:45]} 19. Qxb2 {[%clk 0:02:05]}  Ne3 {[%clk 0:00:43]} 20. Rf2 {[%clk 0:01:51]}  Bg4 {[%clk 0:00:37]} 21. Nd2 {[%clk 0:01:41]}  Bxf3+ {[%clk 0:00:32]} 22. Nxf3 {[%clk 0:01:25]}  Qxd3 {[%clk 0:00:29]} 23. Re1 {[%clk 0:01:09]}  Nd1 {[%clk 0:00:25]} 24. Rxd1 {[%clk 0:00:49]}  Qxd1+ {[%clk 0:00:26]} 25. Kg2 {[%clk 0:00:49]}  Rad8 {[%clk 0:00:22]} 26. Qe5 {[%clk 0:00:45]}  Qd5 {[%clk 0:00:22]} 27. Qxe7 {[%clk 0:00:44]}  Rde8 {[%clk 0:00:21]} 28. Qg5 {[%clk 0:00:35]}  Qxg5 {[%clk 0:00:19]} 29. Nxg5 {[%clk 0:00:35]}  Rxf2+ {[%clk 0:00:20]} 30. Kxf2 {[%clk 0:00:36]}  Re5 {[%clk 0:00:16]} 31. Nf3 {[%clk 0:00:35]}  Rf5 {[%clk 0:00:16]} 32. Ke3 {[%clk 0:00:34]}  Rxf3+ {[%clk 0:00:17]} 33. Kxf3 {[%clk 0:00:34]}  Kf7 {[%clk 0:00:18]} 34. Ke4 {[%clk 0:00:35]}  Ke6 {[%clk 0:00:18]} 35. h4 {[%clk 0:00:31]}  b5 {[%clk 0:00:16]} 36. g4 {[%clk 0:00:27]}  h5 {[%clk 0:00:15]} 37. gxh5 {[%clk 0:00:26]}  gxh5 {[%clk 0:00:16]} 38. a3 {[%clk 0:00:23]}  Kd6 {[%clk 0:00:15]} 39. Kf5 {[%clk 0:00:20]}  Kd5 {[%clk 0:00:15]} 40. Kg5 {[%clk 0:00:20]}  c4 {[%clk 0:00:15]} 41. bxc4+ {[%clk 0:00:20]}  bxc4 {[%clk 0:00:16]} 42. Kxh5 {[%clk 0:00:21]}  c3 {[%clk 0:00:17]} 43. Kg6 {[%clk 0:00:21]}  c2 {[%clk 0:00:18]} 44. h5 {[%clk 0:00:22]}  c1=Q {[%clk 0:00:18]} 45. h6 {[%clk 0:00:23]}  Qc6+ {[%clk 0:00:19]} 46. Kg7 {[%clk 0:00:22]}  Qd7+ {[%clk 0:00:20]} 47. Kg8 {[%clk 0:00:22]}  Ke6 {[%clk 0:00:20]} 48. h7 {[%clk 0:00:17]}  Qf7+ {[%clk 0:00:21]} 0-1


[Site "https://www.chess.com"]

[Event "Titled Tuesday Blitz August 08 Late 2023"]
[White "Gyulamiryan-koryun"]
[Black "Osiecki, Stanislaw"]
[BlackFideId "1102990"]
[WhiteElo "2042"]
[BlackElo "2011"]
[Result "0-1"]
[Round "9"]
[TimeControl "180+1"]
[Date "2023.08.08"]
[WhiteClock "0:00:00"]
[BlackClock "0:00:12"]
[Board "116"]

1. e4 {[%clk 0:01:59]}  e6 {[%clk 0:02:57]} 2. d4 {[%clk 0:01:56]}  d5 {[%clk 0:02:57]} 3. Nd2 {[%clk 0:01:56]}  c5 {[%clk 0:02:56]} 4. exd5 {[%clk 0:01:56]}  exd5 {[%clk 0:02:56]} 5. Bb5+ {[%clk 0:01:56]}  Bd7 {[%clk 0:02:55]} 6. Bxd7+ {[%clk 0:01:54]}  Nxd7 {[%clk 0:02:54]} 7. dxc5 {[%clk 0:01:54]}  Bxc5 {[%clk 0:02:54]} 8. Ngf3 {[%clk 0:01:54]}  Qe7+ {[%clk 0:02:52]} 9. Qe2 {[%clk 0:01:52]}  Qxe2+ {[%clk 0:02:52]} 10. Kxe2 {[%clk 0:01:53]}  Ngf6 {[%clk 0:02:52]} 11. Re1 {[%clk 0:01:53]}  O-O {[%clk 0:02:45]} 12. Kf1 {[%clk 0:01:53]}  Ng4 {[%clk 0:02:38]} 13. Re2 {[%clk 0:01:47]}  Rfe8 {[%clk 0:02:36]} 14. h3 {[%clk 0:01:34]}  Rxe2 {[%clk 0:02:33]} 15. Kxe2 {[%clk 0:01:34]}  Re8+ {[%clk 0:02:28]} 16. Kf1 {[%clk 0:01:32]}  Nxf2 {[%clk 0:02:26]} 17. Nb3 {[%clk 0:01:31]}  Bb6 {[%clk 0:02:25]} 18. Bf4 {[%clk 0:01:17]}  Ne4 {[%clk 0:02:12]} 19. Nfd4 {[%clk 0:01:10]}  Ndf6 {[%clk 0:02:03]} 20. Rd1 {[%clk 0:01:04]}  h6 {[%clk 0:02:01]} 21. g4 {[%clk 0:01:01]}  a5 {[%clk 0:01:56]} 22. a4 {[%clk 0:00:55]}  Rc8 {[%clk 0:01:47]} 23. c3 {[%clk 0:00:54]}  Rc4 {[%clk 0:01:41]} 24. Ra1 {[%clk 0:00:47]}  g5 {[%clk 0:01:36]} 25. Be3 {[%clk 0:00:47]}  Rc8 {[%clk 0:01:26]} 26. Nd2 {[%clk 0:00:46]}  Nxd2+ {[%clk 0:01:23]} 27. Bxd2 {[%clk 0:00:45]}  Bxd4 {[%clk 0:01:22]} 28. cxd4 {[%clk 0:00:44]}  Ne4 {[%clk 0:01:20]} 29. Bxa5 {[%clk 0:00:43]}  Rc2 {[%clk 0:01:17]} 30. b4 {[%clk 0:00:37]}  Rh2 {[%clk 0:01:15]} 31. Ra3 {[%clk 0:00:36]}  Rd2 {[%clk 0:00:55]} 32. Bb6 {[%clk 0:00:35]}  Rb2 {[%clk 0:00:47]} 33. b5 {[%clk 0:00:35]}  Nd2+ {[%clk 0:00:44]} 34. Ke1 {[%clk 0:00:32]}  Nc4 {[%clk 0:00:44]} 35. Bc5 {[%clk 0:00:22]}  Nxa3 {[%clk 0:00:43]} 36. Bxa3 {[%clk 0:00:22]}  Ra2 {[%clk 0:00:43]} 37. Bc5 {[%clk 0:00:21]}  Rxa4 {[%clk 0:00:43]} 38. Kd2 {[%clk 0:00:20]}  Ra2+ {[%clk 0:00:43]} 39. Ke3 {[%clk 0:00:20]}  Rh2 {[%clk 0:00:42]} 40. Kd3 {[%clk 0:00:16]}  Rxh3+ {[%clk 0:00:41]} 41. Kc2 {[%clk 0:00:16]}  Rg3 {[%clk 0:00:42]} 42. Bd6 {[%clk 0:00:15]}  Rxg4 {[%clk 0:00:42]} 43. Kc3 {[%clk 0:00:16]}  h5 {[%clk 0:00:40]} 44. Kb4 {[%clk 0:00:16]}  h4 {[%clk 0:00:40]} 45. Kc5 {[%clk 0:00:15]}  h3 {[%clk 0:00:38]} 46. Kb6 {[%clk 0:00:15]}  Rxd4 {[%clk 0:00:32]} 47. Kxb7 {[%clk 0:00:13]}  Rd3 {[%clk 0:00:27]} 48. b6 {[%clk 0:00:13]}  g4 {[%clk 0:00:25]} 49. Kc6 {[%clk 0:00:09]}  Rc3+ {[%clk 0:00:15]} 50. Kxd5 {[%clk 0:00:08]}  Rb3 {[%clk 0:00:11]} 51. Bc7 {[%clk 0:00:06]}  g3 {[%clk 0:00:12]} 52. Kc4 {[%clk 0:00:05]}  Rxb6 {[%clk 0:00:08]} 53. Bxg3 {[%clk 0:00:05]}  Rg6 {[%clk 0:00:06]} 54. Bh2 {[%clk 0:00:03]}  Rg2 {[%clk 0:00:06]} 55. Be5 {[%clk 0:00:03]}  h2 {[%clk 0:00:06]} 56. Bxh2 {[%clk 0:00:02]}  Rxh2 {[%clk 0:00:07]} 57. Kd4 {[%clk 0:00:03]}  Rh5 {[%clk 0:00:06]} 58. Ke4 {[%clk 0:00:04]}  Kg7 {[%clk 0:00:07]} 59. Kf4 {[%clk 0:00:05]}  Kg6 {[%clk 0:00:08]} 60. Kg4 {[%clk 0:00:05]}  Rb5 {[%clk 0:00:07]} 61. Kf4 {[%clk 0:00:05]}  Rb4+ {[%clk 0:00:08]} 62. Kf3 {[%clk 0:00:04]}  Rb8 {[%clk 0:00:09]} 63. Kf4 {[%clk 0:00:03]}  Rb7 {[%clk 0:00:09]} 64. Kf3 {[%clk 0:00:03]}  Rb6 {[%clk 0:00:10]} 65. Kf4 {[%clk 0:00:04]}  f5 {[%clk 0:00:11]} 66. Kf3 {[%clk 0:00:03]}  Rb4 {[%clk 0:00:11]} 67. Kg3 {[%clk 0:00:03]}  Kg5 {[%clk 0:00:12]} 68. Kf3 {[%clk 0:00:04]}  Rb3+ {[%clk 0:00:12]} 69. Kg2 {[%clk 0:00:03]}  Kg4 {[%clk 0:00:12]} 70. Kf2 {[%clk 0:00:04]}  f4 {[%clk 0:00:12]} 71. Kf1 {[%clk 0:00:00]}  Rb2 {[%clk 0:00:12]} 0-1


[Site "https://www.chess.com"]

[Event "Titled Tuesday Blitz August 08 Late 2023"]
[White "Naroditsky, Daniel"]
[Black "Perez Ponsa, Federico"]
[WhiteFideId "2026961"]
[BlackFideId "117927"]
[WhiteElo "3207"]
[BlackElo "2909"]
[Result "1/2-1/2"]
[Round "10"]
[TimeControl "180+1"]
[Date "2023.08.08"]
[WhiteClock "0:01:03"]
[BlackClock "0:00:54"]
[Board "1"]

1. e4 {[%clk 0:03:00]}  c6 {[%clk 0:02:51]} 2. d4 {[%clk 0:02:59]}  d5 {[%clk 0:02:52]} 3. exd5 {[%clk 0:03:00]}  cxd5 {[%clk 0:02:52]} 4. Nf3 {[%clk 0:03:01]}  Nc6 {[%clk 0:02:52]} 5. Bb5 {[%clk 0:03:00]}  Bg4 {[%clk 0:02:39]} 6. c4 {[%clk 0:02:58]}  Nf6 {[%clk 0:02:37]} 7. Nc3 {[%clk 0:02:56]}  e6 {[%clk 0:02:33]} 8. Qa4 {[%clk 0:02:55]}  Bxf3 {[%clk 0:02:23]} 9. gxf3 {[%clk 0:02:46]}  Rc8 {[%clk 0:02:20]} 10. Qxa7 {[%clk 0:02:41]}  Nd7 {[%clk 0:02:15]} 11. Qxb7 {[%clk 0:02:17]}  Rc7 {[%clk 0:01:56]} 12. Qa6 {[%clk 0:02:12]}  Nxd4 {[%clk 0:01:52]} 13. Bf4 {[%clk 0:01:49]}  Nxb5 {[%clk 0:01:39]} 14. cxb5 {[%clk 0:01:33]}  Rc4 {[%clk 0:01:39]} 15. Be3 {[%clk 0:01:13]}  Bb4 {[%clk 0:00:54]} 16. a3 {[%clk 0:01:03]} 1/2-1/2


[Site "https://www.chess.com"]

[Event "Titled Tuesday Blitz August 08 Late 2023"]
[White "Firouzja, Alireza"]
[Black "Kamsky, Gata"]
[WhiteFideId "12573981"]
[BlackFideId "2000024"]
[WhiteElo "3088"]
[BlackElo "2967"]
[Result "1-0"]
[Round "10"]
[TimeControl "180+1"]
[Date "2023.08.08"]
[WhiteClock "0:00:33"]
[BlackClock "0:00:03"]
[Board "3"]

1. d4 {[%clk 0:03:00]}  f5 {[%clk 0:02:59]} 2. Bf4 {[%clk 0:02:57]}  Nf6 {[%clk 0:02:56]} 3. e3 {[%clk 0:02:57]}  e6 {[%clk 0:02:57]} 4. Nf3 {[%clk 0:02:52]}  b6 {[%clk 0:02:56]} 5. h3 {[%clk 0:02:51]}  Bb7 {[%clk 0:02:56]} 6. Be2 {[%clk 0:02:50]}  Be7 {[%clk 0:02:49]} 7. c4 {[%clk 0:02:49]}  O-O {[%clk 0:02:46]} 8. Nc3 {[%clk 0:02:49]}  Ne4 {[%clk 0:02:46]} 9. Nxe4 {[%clk 0:02:43]}  Bxe4 {[%clk 0:02:45]} 10. O-O {[%clk 0:02:43]}  d6 {[%clk 0:02:45]} 11. Nd2 {[%clk 0:02:32]}  Bb7 {[%clk 0:02:44]} 12. Bf3 {[%clk 0:02:33]}  Bxf3 {[%clk 0:02:43]} 13. Nxf3 {[%clk 0:02:29]}  Nd7 {[%clk 0:02:42]} 14. Qb3 {[%clk 0:02:22]}  Kh8 {[%clk 0:02:30]} 15. Rac1 {[%clk 0:02:22]}  Bf6 {[%clk 0:02:27]} 16. Rfd1 {[%clk 0:02:08]}  Qe7 {[%clk 0:02:25]} 17. Bh2 {[%clk 0:02:08]}  e5 {[%clk 0:02:19]} 18. Qb5 {[%clk 0:02:08]}  Rfe8 {[%clk 0:01:59]} 19. Qc6 {[%clk 0:02:04]}  Rac8 {[%clk 0:01:57]} 20. b4 {[%clk 0:02:04]}  g5 {[%clk 0:01:43]} 21. c5 {[%clk 0:02:00]}  dxc5 {[%clk 0:01:17]} 22. dxc5 {[%clk 0:01:28]}  Nb8 {[%clk 0:01:09]} 23. Qa4 {[%clk 0:01:19]}  Qg7 {[%clk 0:00:59]} 24. Qxa7 {[%clk 0:01:07]}  g4 {[%clk 0:00:45]} 25. hxg4 {[%clk 0:01:06]}  Qxg4 {[%clk 0:00:43]} 26. cxb6 {[%clk 0:00:59]}  Rg8 {[%clk 0:00:43]} 27. Ne1 {[%clk 0:00:56]}  cxb6 {[%clk 0:00:35]} 28. Qxb6 {[%clk 0:00:52]}  Bg7 {[%clk 0:00:33]} 29. Rxc8 {[%clk 0:00:41]}  Rxc8 {[%clk 0:00:32]} 30. Qe6 {[%clk 0:00:42]}  Rg8 {[%clk 0:00:27]} 31. Rc1 {[%clk 0:00:41]}  Qg6 {[%clk 0:00:12]} 32. Qxg6 {[%clk 0:00:37]}  hxg6 {[%clk 0:00:13]} 33. Nf3 {[%clk 0:00:36]}  Nd7 {[%clk 0:00:12]} 34. Rc7 {[%clk 0:00:35]}  Rd8 {[%clk 0:00:10]} 35. Ng5 {[%clk 0:00:33]}  Kg8 {[%clk 0:00:03]} 36. Ne6 {[%clk 0:00:33]} 1-0


[Site "https://www.chess.com"]

[Event "Titled Tuesday Blitz August 08 Late 2023"]
[White "Mamedov, Rauf"]
[Black "Fedoseev, Vladimir"]
[WhiteFideId "13401653"]
[BlackFideId "24130737"]
[WhiteElo "3019"]
[BlackElo "3091"]
[Result "1-0"]
[Round "10"]
[TimeControl "180+1"]
[Date "2023.08.08"]
[WhiteClock "0:00:36"]
[BlackClock "0:00:16"]
[Board "4"]

1. e4 {[%clk 0:03:00]}  g6 {[%clk 0:02:54]} 2. Nf3 {[%clk 0:03:00]}  Bg7 {[%clk 0:02:54]} 3. d4 {[%clk 0:03:00]}  d6 {[%clk 0:02:55]} 4. Bc4 {[%clk 0:03:00]}  e6 {[%clk 0:02:53]} 5. Bb3 {[%clk 0:02:59]}  Nd7 {[%clk 0:02:51]} 6. c3 {[%clk 0:02:59]}  h6 {[%clk 0:02:45]} 7. Nbd2 {[%clk 0:02:58]}  Ne7 {[%clk 0:02:45]} 8. Nf1 {[%clk 0:02:58]}  b5 {[%clk 0:02:43]} 9. Ng3 {[%clk 0:02:57]}  Bb7 {[%clk 0:02:43]} 10. a4 {[%clk 0:02:55]}  a6 {[%clk 0:02:41]} 11. Qe2 {[%clk 0:02:55]}  c5 {[%clk 0:02:40]} 12. O-O {[%clk 0:02:46]}  Qb6 {[%clk 0:02:36]} 13. axb5 {[%clk 0:02:37]}  axb5 {[%clk 0:02:35]} 14. Be3 {[%clk 0:02:36]}  O-O {[%clk 0:02:33]} 15. Qd2 {[%clk 0:02:31]}  Kh7 {[%clk 0:02:32]} 16. h3 {[%clk 0:02:12]}  Qc7 {[%clk 0:02:28]} 17. Rxa8 {[%clk 0:02:04]}  Rxa8 {[%clk 0:02:27]} 18. Rd1 {[%clk 0:01:58]}  Ra6 {[%clk 0:02:24]} 19. h4 {[%clk 0:01:51]}  Nf6 {[%clk 0:02:12]} 20. Bc2 {[%clk 0:01:50]}  Ng4 {[%clk 0:02:09]} 21. h5 {[%clk 0:01:49]}  Nxe3 {[%clk 0:02:07]} 22. fxe3 {[%clk 0:01:49]}  b4 {[%clk 0:01:40]} 23. cxb4 {[%clk 0:01:42]}  cxb4 {[%clk 0:01:34]} 24. Bd3 {[%clk 0:01:43]}  Rb6 {[%clk 0:01:33]} 25. Rf1 {[%clk 0:01:35]}  Kg8 {[%clk 0:01:32]} 26. hxg6 {[%clk 0:01:33]}  fxg6 {[%clk 0:01:29]} 27. Qe2 {[%clk 0:01:29]}  b3 {[%clk 0:01:23]} 28. Nh4 {[%clk 0:01:28]}  e5 {[%clk 0:01:17]} 29. Bc4+ {[%clk 0:01:19]}  Kh7 {[%clk 0:01:16]} 30. Rf7 {[%clk 0:01:19]}  d5 {[%clk 0:01:08]} 31. Ngf5 {[%clk 0:00:58]}  gxf5 {[%clk 0:01:02]} 32. Nxf5 {[%clk 0:00:57]}  Qxc4 {[%clk 0:00:45]} 33. Rxg7+ {[%clk 0:00:55]}  Kh8 {[%clk 0:00:45]} 34. Qg4 {[%clk 0:00:54]}  Nxf5 {[%clk 0:00:38]} 35. exf5 {[%clk 0:00:38]}  Qc8 {[%clk 0:00:35]} 36. dxe5 {[%clk 0:00:38]}  Qf8 {[%clk 0:00:27]} 37. f6 {[%clk 0:00:38]}  Bc8 {[%clk 0:00:16]} 38. Qg6 {[%clk 0:00:36]} 1-0


[Site "https://www.chess.com"]

[Event "Titled Tuesday Blitz August 08 Late 2023"]
[White "Aronian, Levon"]
[Black "Zhigalko, Sergei"]
[WhiteFideId "13300474"]
[BlackFideId "13502956"]
[WhiteElo "3040"]
[BlackElo "2895"]
[Result "0-1"]
[Round "10"]
[TimeControl "180+1"]
[Date "2023.08.08"]
[WhiteClock "0:00:00"]
[BlackClock "0:00:05"]
[Board "5"]

1. e4 {[%clk 0:03:00]}  c5 {[%clk 0:03:00]} 2. Nf3 {[%clk 0:03:01]}  Nc6 {[%clk 0:03:00]} 3. Bb5 {[%clk 0:03:00]}  Nf6 {[%clk 0:03:01]} 4. Nc3 {[%clk 0:02:59]}  Qc7 {[%clk 0:03:01]} 5. O-O {[%clk 0:02:55]}  Nd4 {[%clk 0:03:01]} 6. Re1 {[%clk 0:02:51]}  a6 {[%clk 0:03:01]} 7. Bf1 {[%clk 0:02:50]}  e5 {[%clk 0:03:01]} 8. d3 {[%clk 0:02:40]}  h6 {[%clk 0:02:34]} 9. Nd2 {[%clk 0:02:39]}  Be7 {[%clk 0:02:11]} 10. Nc4 {[%clk 0:02:35]}  O-O {[%clk 0:02:07]} 11. Ne3 {[%clk 0:02:34]}  d6 {[%clk 0:02:01]} 12. Ncd5 {[%clk 0:02:34]}  Nxd5 {[%clk 0:02:01]} 13. Nxd5 {[%clk 0:02:35]}  Qd8 {[%clk 0:02:01]} 14. c3 {[%clk 0:02:34]}  Nc6 {[%clk 0:01:56]} 15. g3 {[%clk 0:02:28]}  Be6 {[%clk 0:01:56]} 16. f4 {[%clk 0:02:28]}  exf4 {[%clk 0:01:44]} 17. Nxe7+ {[%clk 0:02:22]}  Qxe7 {[%clk 0:01:38]} 18. gxf4 {[%clk 0:02:18]}  f5 {[%clk 0:01:33]} 19. exf5 {[%clk 0:02:14]}  Rxf5 {[%clk 0:01:32]} 20. Bh3 {[%clk 0:02:13]}  Qf7 {[%clk 0:01:19]} 21. Bxf5 {[%clk 0:02:07]}  Qxf5 {[%clk 0:01:06]} 22. Qf3 {[%clk 0:02:04]}  Rf8 {[%clk 0:01:05]} 23. Qe4 {[%clk 0:01:37]}  Qg4+ {[%clk 0:01:05]} 24. Kh1 {[%clk 0:01:35]}  Rf6 {[%clk 0:00:56]} 25. Bd2 {[%clk 0:01:29]}  Qh5 {[%clk 0:00:33]} 26. c4 {[%clk 0:01:29]}  d5 {[%clk 0:00:29]} 27. Qe2 {[%clk 0:01:29]}  Qf7 {[%clk 0:00:20]} 28. f5 {[%clk 0:01:29]}  Bd7 {[%clk 0:00:15]} 29. cxd5 {[%clk 0:01:27]}  Nd4 {[%clk 0:00:13]} 30. Qe4 {[%clk 0:01:23]}  Rxf5 {[%clk 0:00:05]} 31. Rg1 {[%clk 0:01:14]}  Rxd5 {[%clk 0:00:05]} 32. Bxh6 {[%clk 0:01:14]}  Nf5 {[%clk 0:00:05]} 33. Bxg7 {[%clk 0:00:50]}  Nxg7 {[%clk 0:00:05]} 34. Raf1 {[%clk 0:00:50]}  Bf5 {[%clk 0:00:02]} 35. Qh4 {[%clk 0:00:41]}  c4 {[%clk 0:00:02]} 36. dxc4 {[%clk 0:00:29]}  Re5 {[%clk 0:00:02]} 37. Rg2 {[%clk 0:00:24]}  Re4 {[%clk 0:00:01]} 38. Qg5 {[%clk 0:00:20]}  Re5 {[%clk 0:00:01]} 39. Kg1 {[%clk 0:00:19]}  Rc5 {[%clk 0:00:01]} 40. b4 {[%clk 0:00:18]}  Re5 {[%clk 0:00:02]} 41. Qd8+ {[%clk 0:00:15]}  Re8 {[%clk 0:00:01]} 42. Qd4 {[%clk 0:00:14]}  Re7 {[%clk 0:00:01]} 43. h4 {[%clk 0:00:12]}  Qe6 {[%clk 0:00:01]} 44. c5 {[%clk 0:00:08]}  Rf7 {[%clk 0:00:02]} 45. Qd6 {[%clk 0:00:06]}  Qe4 {[%clk 0:00:02]} 46. Qf4 {[%clk 0:00:06]}  Qe6 {[%clk 0:00:02]} 47. Kh2 {[%clk 0:00:06]}  Kh7 {[%clk 0:00:02]} 48. Qg5 {[%clk 0:00:05]}  Qe5+ {[%clk 0:00:02]} 49. Qg3 {[%clk 0:00:06]}  Qf6 {[%clk 0:00:02]} 50. h5 {[%clk 0:00:05]}  Qh6 {[%clk 0:00:03]} 51. Qg5 {[%clk 0:00:05]}  Qxg5 {[%clk 0:00:02]} 52. Rxg5 {[%clk 0:00:05]}  Kh6 {[%clk 0:00:03]} 53. Rg3 {[%clk 0:00:05]}  Nxh5 {[%clk 0:00:04]} 54. Rd3 {[%clk 0:00:05]}  Bxd3 {[%clk 0:00:03]} 55. Rxf7 {[%clk 0:00:05]}  Be4 {[%clk 0:00:04]} 56. Re7 {[%clk 0:00:02]}  Bd5 {[%clk 0:00:03]} 57. a4 {[%clk 0:00:01]}  Nf6 {[%clk 0:00:03]} 58. b5 {[%clk 0:00:01]}  axb5 {[%clk 0:00:04]} 59. axb5 {[%clk 0:00:02]}  Kg5 {[%clk 0:00:05]} 60. Kg3 {[%clk 0:00:00]}  Kf5 {[%clk 0:00:05]} 0-1


[Site "https://www.chess.com"]

[Event "Titled Tuesday Blitz August 08 Late 2023"]
[White "Martinez Alcantara, Jose Eduardo"]
[Black "Khanin, Semen"]
[WhiteFideId "3805662"]
[BlackFideId "4111990"]
[WhiteElo "3037"]
[BlackElo "2888"]
[Result "1-0"]
[Round "10"]
[TimeControl "180+1"]
[Date "2023.08.08"]
[WhiteClock "0:01:19"]
[BlackClock "0:00:00"]
[Board "6"]

1. e4 {[%clk 0:03:00]}  e5 {[%clk 0:02:59]} 2. Nf3 {[%clk 0:02:59]}  Nc6 {[%clk 0:02:59]} 3. Nc3 {[%clk 0:03:00]}  Nf6 {[%clk 0:02:59]} 4. h3 {[%clk 0:03:00]}  Bb4 {[%clk 0:02:52]} 5. a3 {[%clk 0:03:00]}  Bxc3 {[%clk 0:02:50]} 6. dxc3 {[%clk 0:03:00]}  Nxe4 {[%clk 0:02:47]} 7. Nxe5 {[%clk 0:03:01]}  Nxe5 {[%clk 0:02:45]} 8. Qd4 {[%clk 0:03:00]}  O-O {[%clk 0:02:44]} 9. Qxe4 {[%clk 0:03:00]}  Re8 {[%clk 0:02:43]} 10. Be3 {[%clk 0:03:00]}  d5 {[%clk 0:02:42]} 11. Qf4 {[%clk 0:03:00]}  Ng6 {[%clk 0:02:35]} 12. Qd4 {[%clk 0:03:00]}  b6 {[%clk 0:02:20]} 13. O-O-O {[%clk 0:02:59]}  Be6 {[%clk 0:02:20]} 14. h4 {[%clk 0:02:51]}  c5 {[%clk 0:02:20]} 15. Qd2 {[%clk 0:02:51]}  Ne5 {[%clk 0:02:19]} 16. Bf4 {[%clk 0:02:45]}  Qf6 {[%clk 0:02:11]} 17. Bg5 {[%clk 0:02:41]}  Qf5 {[%clk 0:02:11]} 18. f3 {[%clk 0:02:38]}  h6 {[%clk 0:02:00]} 19. Bf4 {[%clk 0:02:34]}  Nc4 {[%clk 0:01:54]} 20. Bxc4 {[%clk 0:02:34]}  dxc4 {[%clk 0:01:54]} 21. g4 {[%clk 0:02:35]}  Qg6 {[%clk 0:01:44]} 22. h5 {[%clk 0:02:34]}  Qf6 {[%clk 0:01:23]} 23. g5 {[%clk 0:02:33]}  Qf5 {[%clk 0:01:24]} 24. Rhg1 {[%clk 0:02:08]}  Rad8 {[%clk 0:00:16]} 25. Qxd8 {[%clk 0:02:07]}  Qxf4+ {[%clk 0:00:17]} 26. Qd2 {[%clk 0:02:06]}  Qxd2+ {[%clk 0:00:16]} 27. Rxd2 {[%clk 0:02:03]}  hxg5 {[%clk 0:00:17]} 28. Rxg5 {[%clk 0:02:03]}  Kh7 {[%clk 0:00:17]} 29. Re5 {[%clk 0:02:02]}  Kh6 {[%clk 0:00:15]} 30. Rd6 {[%clk 0:02:00]}  Rf8 {[%clk 0:00:13]} 31. f4 {[%clk 0:02:00]}  Kh7 {[%clk 0:00:13]} 32. f5 {[%clk 0:01:57]}  Bc8 {[%clk 0:00:13]} 33. f6 {[%clk 0:01:56]}  g6 {[%clk 0:00:13]} 34. Kd2 {[%clk 0:01:51]}  gxh5 {[%clk 0:00:13]} 35. Rxh5+ {[%clk 0:01:50]}  Kg6 {[%clk 0:00:13]} 36. Re5 {[%clk 0:01:51]}  Be6 {[%clk 0:00:13]} 37. Re1 {[%clk 0:01:44]}  Kxf6 {[%clk 0:00:13]} 38. Rc6 {[%clk 0:01:37]}  Rd8+ {[%clk 0:00:11]} 39. Kc1 {[%clk 0:01:37]}  Rd7 {[%clk 0:00:10]} 40. a4 {[%clk 0:01:36]}  Rd5 {[%clk 0:00:06]} 41. a5 {[%clk 0:01:33]}  bxa5 {[%clk 0:00:06]} 42. Ra6 {[%clk 0:01:34]}  Kg5 {[%clk 0:00:05]} 43. Rxa5 {[%clk 0:01:31]}  Bg4 {[%clk 0:00:05]} 44. Rxa7 {[%clk 0:01:27]}  f5 {[%clk 0:00:05]} 45. Rf1 {[%clk 0:01:24]}  f4 {[%clk 0:00:04]} 46. Rg7+ {[%clk 0:01:24]}  Kh4 {[%clk 0:00:05]} 47. Rh1+ {[%clk 0:01:22]}  Kg3 {[%clk 0:00:04]} 48. Rg1+ {[%clk 0:01:21]}  Kf2 {[%clk 0:00:04]} 49. R1xg4 {[%clk 0:01:20]}  f3 {[%clk 0:00:05]} 50. Rxc4 {[%clk 0:01:20]}  Ke2 {[%clk 0:00:04]} 51. Re4+ {[%clk 0:01:20]}  Kf1 {[%clk 0:00:04]} 52. Rf7 {[%clk 0:01:20]}  f2 {[%clk 0:00:05]} 53. b3 {[%clk 0:01:19]}  Rg5 {[%clk 0:00:02]} 54. Ref4 {[%clk 0:01:19]}  Rg2 {[%clk 0:00:02]} 55. Kd2 {[%clk 0:01:18]}  Kg1 {[%clk 0:00:00]} 56. Rxf2 {[%clk 0:01:19]} 1-0


[Site "https://www.chess.com"]